bitfinex/quotes_ETHUSD_20241203
["timestamp","ask_amount","ask_price","bid_price","bid_amount"]
[1733216178010,0.7571,3618.1,3617.1,3.03819722]
[1733216178237,0.7571,3618.1,3617.3,2.76446]
[1733216178409,0.7571,3618.1,3617.4,0.03553915]
[1733216178605,0.7571,3618.1,3617.1,5.76706997]
[1733216178909,0.7571,3618.1,3617.2,0.03569454]
[1733216179733,0.7571,3618.1,3617.0,0.81]
[1733216179952,0.7571,3618.1,3616.7,3.00246997]
[1733216179953,1.0127684,3618.1,3617.3,0.03573183]
[1733216180248,2.76411,3617.8,3617.4,0.03566913]
[1733216180417,2.76411,3617.8,3616.6,3.57502]
[1733216180604,0.55047698,3618.0,3616.7,2.80104808]
[1733216180806,0.55047698,3618.0,3616.8,3.0]
[1733216181047,0.55047698,3618.0,3616.9,2.80075265]
[1733216181252,3.31443698,3618.0,3616.9,0.03598265]
[1733216182252,0.55047698,3618.0,3616.9,0.03598265]
[1733216182468,0.55047698,3618.0,3616.9,2.76477]
[1733216182756,3.31444698,3618.0,3617.0,0.03591994]
[1733216182965,0.8074,3617.7,3617.0,0.03591994]
[1733216183160,0.8074,3617.7,3616.6,3.57501]
[1733216183364,0.8074,3617.7,3617.1,0.03585723]
[1733216183568,2.76434,3617.5,3616.2,3.56223]
[1733216183748,0.8074,3617.7,3616.2,3.56223]
[1733216184055,0.8074,3617.3,3616.3,0.036519]
[1733216184562,0.8074,3617.3,3616.3,2.801769]
[1733216185550,3.57189,3617.3,3616.3,0.036519]
[1733216186558,2.76465,3617.1,3616.3,0.036519]
[1733216186940,2.76465,3617.1,3615.9,3.0]
[1733216187126,2.76465,3617.1,3616.4,0.03667302]
[1733216187461,2.76465,3617.1,3616.5,0.0366103]
[1733216187765,2.76465,3617.1,3616.0,3.0]
[1733216187937,0.7764,3617.0,3615.8,0.8052]
[1733216188142,0.7764,3617.0,3616.1,0.03686123]
[1733216188323,0.7764,3617.0,3615.9,0.02765295]
[1733216188523,0.7764,3617.0,3616.2,0.03679849]
[1733216188764,0.7764,3617.0,3616.1,2.7654]
[1733216189109,0.7764,3617.0,3615.1,3.54545789]
[1733216189110,2.76487,3616.9,3616.2,0.03679849]
[1733216189270,0.7764,3617.0,3616.2,0.03679849]
[1733216189466,0.8109,3616.6,3615.2,3.53957]
[1733216189674,0.25499838,3616.9,3615.3,0.83926672]
[1733216189876,0.8109,3617.0,3615.8,2.76561]
[1733216190116,0.8109,3617.0,3615.9,0.03773363]
[1733216190282,3.57562,3617.0,3615.9,2.80325363]
[1733216190467,3.57562,3617.0,3616.0,0.7938]
[1733216190468,0.8109,3617.0,3616.0,0.7938]
[1733216190671,0.54202476,3616.7,3616.1,0.03760814]
[1733216192609,0.54202476,3616.7,3616.2,0.03754541]
[1733216192809,0.54202476,3616.7,3615.7,2.7657]
[1733216193010,0.54202476,3616.7,3615.8,2.80344306]
[1733216193505,0.54202476,3616.7,3615.8,0.03781306]
[1733216193706,0.54202476,3616.7,3615.9,2.76554]
[1733216193916,0.54202476,3616.7,3616.0,0.03768089]
[1733216194119,0.54202476,3616.7,3616.0,2.80316089]
[1733216194321,0.54202476,3616.7,3615.8,2.76562]
[1733216194608,0.54202476,3616.7,3615.6,6.59747]
[1733216194806,0.54202476,3616.7,3615.7,0.03787247]
[1733216195006,0.54202476,3616.7,3615.8,2.76561]
[1733216195247,0.54202476,3616.7,3615.9,0.03774697]
[1733216195453,0.54202476,3616.7,3615.9,2.80329697]
[1733216196646,0.54202476,3616.7,3615.9,0.03774697]
[1733216196953,0.54202476,3616.7,3615.7,2.7657]
[1733216197151,0.54202476,3616.7,3616.0,0.03767088]
[1733216197332,0.54202476,3616.7,3615.7,2.7657]
[1733216197544,0.54202476,3616.7,3616.1,0.03760814]
[1733216197709,0.54202476,3616.7,3615.8,3.0]
[1733216197911,0.54202476,3616.7,3615.9,0.03773363]
[1733216199450,0.8109,3617.0,3616.2,3.0]
[1733216199750,0.54351495,3616.8,3616.3,0.03760275]
[1733216200165,0.54351495,3616.8,3616.2,3.0]
[1733216200338,0.54351495,3616.8,3616.4,0.03754002]
[1733216200662,0.54351495,3616.8,3616.5,0.0374773]
[1733216200826,0.54351495,3616.8,3616.0,3.0]
[1733216201027,0.54351495,3616.8,3615.8,5.76563]
[1733216201287,0.54351495,3616.8,3615.9,0.03785371]
[1733216201440,0.54351495,3616.8,3616.0,3.0]
[1733216201642,0.54351495,3616.8,3616.1,0.03772823]
[1733216202268,0.54351495,3616.8,3615.9,3.0]
[1733216202649,0.54351495,3616.8,3616.0,0.03779097]
[1733216203764,0.54351495,3616.8,3616.0,3.03779097]
[1733216205740,0.54351495,3616.8,3616.0,2.80325097]
[1733216205954,0.54351495,3616.8,3616.1,3.0]
[1733216206473,0.54351495,3616.8,3616.2,0.03634778]
[1733216207331,0.8101,3616.7,3616.2,0.03634778]
[1733216207775,0.8101,3616.7,3615.9,3.0]
[1733216207933,0.8101,3616.7,3616.3,0.03628171]
[1733216208290,0.8101,3616.7,3616.1,3.0]
[1733216208439,0.54351495,3616.8,3616.4,0.03621898]
[1733216208773,0.8101,3617.0,3616.3,2.76524]
[1733216209073,0.55306096,3616.9,3616.4,0.03622232]
[1733216209586,1.05587754,3617.3,3616.6,2.76495]
[1733216209751,0.5491299,3617.2,3616.6,2.76495]
[1733216209936,0.5491299,3617.2,3616.7,0.03603414]
[1733216210480,0.8,3617.3,3616.7,0.03603414]
[1733216210772,1.35726885,3617.3,3616.7,0.03603414]
[1733216211151,1.35726885,3617.3,3616.4,5.76517]
[1733216211367,1.35726885,3617.3,3616.8,0.03597143]
[1733216211697,4.12177885,3617.3,3616.9,0.03590871]
[1733216211874,0.7892,3617.1,3616.0,5.76546]
[1733216212054,1.0454738,3617.1,3617.0,0.03567892]
[1733216212392,1.0454738,3617.1,3616.2,3.0]
[1733216212697,1.0454738,3617.1,3616.3,0.03492866]
[1733216213304,3.8101238,3617.1,3616.3,0.03492866]
[1733216213470,3.8309138,3617.0,3616.3,0.03492866]
[1733216213677,0.2562738,3616.9,3616.3,0.03492866]
[1733216213871,0.2562738,3616.9,3615.9,2.76554]
[1733216214089,0.2562738,3616.9,3616.4,0.03486593]
[1733216214293,0.2562738,3616.9,3615.9,2.76554]
[1733216214501,0.2562738,3616.9,3616.5,0.0348032]
[1733216214660,0.2562738,3616.9,3615.9,2.76554]
[1733216214856,3.0210838,3616.9,3616.6,0.03474048]
[1733216215136,0.2562738,3616.8,3616.6,0.03474048]
[1733216215306,0.2562738,3616.8,3615.8,3.0]
[1733216215609,0.2562738,3616.7,3615.5,3.0]
[1733216215759,3.8312538,3616.6,3615.5,5.7658]
[1733216216102,3.0213838,3616.5,3615.4,3.0]
[1733216216304,1.0706738,3616.4,3615.5,3.0]
[1733216216604,1.0706738,3616.4,3615.6,2.76577]
[1733216216762,0.8144,3616.4,3615.7,3.0]
[1733216217707,0.8144,3616.4,3615.5,0.6908121]
[1733216217924,1.38159135,3616.4,3615.8,3.0]
[1733216218198,0.8144,3616.4,3615.8,0.36908121]
[1733216218362,0.8144,3616.4,3615.5,0.6908121]
[1733216218910,0.25657995,3616.8,3615.9,2.76554]
[1733216219110,0.7963,3616.7,3615.9,0.829]
[1733216219475,0.7963,3616.7,3616.0,0.03529683]
[1733216220177,0.25657995,3616.6,3616.0,0.03529683]
[1733216220503,0.25657995,3616.6,3616.1,0.03515076]
[1733216220708,3.02161995,3616.6,3616.1,0.03515076]
[1733216221015,0.8118,3616.5,3615.5,5.76583]
[1733216221219,1.06831593,3616.5,3615.5,5.76583]
[1733216221375,1.06831593,3616.5,3615.6,0.0354645]
[1733216221777,1.06831593,3616.5,3615.6,2.8012345]
[1733216222007,0.8118,3616.5,3615.6,2.8012345]
[1733216222387,0.8118,3616.5,3615.6,0.0354645]
[1733216222643,0.8118,3616.5,3615.8,2.76562]
[1733216222822,1.36954708,3616.5,3615.8,2.76562]
[1733216223184,1.36954708,3616.5,3615.9,0.03537291]
[1733216226081,1.36954708,3616.5,3615.9,2.76552]
[1733216226280,1.36954708,3616.5,3616.0,0.03531017]
[1733216226808,1.36954708,3616.5,3616.0,2.80077017]
[1733216230059,0.8118,3616.5,3616.2,2.76527]
[1733216230548,0.8118,3616.5,3616.3,0.03516195]
[1733216230761,0.8118,3616.5,3616.2,2.76527]
[1733216230957,0.8118,3616.5,3616.4,0.03509922]
[1733216231140,0.8118,3616.5,3616.3,0.03516195]
[1733216231452,0.8118,3616.5,3616.2,2.76527]
[1733216231659,0.8118,3616.5,3616.4,0.03509922]
[1733216231827,0.8118,3616.5,3616.3,0.03516195]
[1733216232165,0.8118,3616.5,3615.9,3.76256997]
[1733216232166,0.8118,3616.5,3616.4,0.03509922]
[1733216232641,0.8118,3616.5,3616.1,2.76539]
[1733216232825,0.8118,3616.5,3616.4,0.03509922]
[1733216233028,0.8118,3616.5,3616.2,2.7653]
[1733216233230,0.8118,3616.5,3616.4,0.03509922]
[1733216233444,0.8118,3616.5,3616.3,0.03516195]
[1733216233632,0.8118,3616.5,3616.4,0.03509922]
[1733216234458,0.55150497,3616.7,3616.4,0.03509922]
[1733216234612,0.55150497,3616.7,3616.4,2.80027922]
[1733216234823,0.55150497,3616.7,3616.4,2.76518]
[1733216235014,0.55150497,3616.7,3616.5,0.03503649]
[1733216235416,0.55150497,3616.7,3616.1,2.76534]
[1733216235926,0.55150497,3616.7,3616.2,0.03522469]
[1733216237841,0.55150497,3616.7,3616.2,2.76532]
[1733216238029,0.55150497,3616.7,3616.3,0.03516195]
[1733216238359,0.55150497,3616.7,3616.0,2.76546]
[1733216238566,0.55150497,3616.7,3616.1,0.03528743]
[1733216238859,0.55150497,3616.7,3616.3,0.03154]
[1733216239272,0.55150497,3616.7,3616.4,0.03509922]
[1733216239618,0.8029,3616.6,3616.4,0.03509922]
[1733216239847,0.8029,3616.6,3616.1,2.7654]
[1733216240065,0.8029,3616.6,3616.5,0.03503649]
[1733216240549,0.8029,3616.6,3616.1,2.7654]
[1733216240752,0.8029,3616.6,3616.2,0.03522469]
[1733216243357,0.8029,3616.6,3616.3,0.03515195]
[1733216243535,0.8029,3616.6,3616.0,2.76546]
[1733216243741,0.8029,3616.6,3616.1,0.03527743]
[1733216244151,0.8029,3616.6,3616.1,2.80067743]
[1733216245069,0.8029,3616.6,3616.2,2.76533]
[1733216245433,0.8029,3616.6,3616.3,0.03515195]
[1733216245838,0.8029,3616.6,3616.2,2.76533]
[1733216246037,0.8029,3616.6,3616.4,0.03508922]
[1733216246280,0.8029,3616.6,3616.3,0.03515195]
[1733216246564,0.8029,3616.6,3616.4,0.03508922]
[1733216246778,0.8029,3616.6,3616.2,2.76533]
[1733216247129,0.55150497,3616.7,3616.3,0.03515195]
[1733216247470,0.55150497,3616.7,3616.2,2.76533]
[1733216247631,0.55150497,3616.7,3616.4,0.03508922]
[1733216247829,0.55150497,3616.7,3616.3,0.03515195]
[1733216248129,0.55150497,3616.7,3616.4,0.03508922]
[1733216248445,0.25636157,3617.0,3616.5,0.67460749]
[1733216248761,0.7605,3617.1,3616.5,0.03502649]
[1733216248925,0.7605,3617.1,3616.3,3.77646997]
[1733216249127,0.7605,3617.1,3616.4,0.03508922]
[1733216249532,0.7605,3617.1,3616.7,1.45433222]
[1733216249933,0.7605,3617.1,3616.8,0.03483833]
[1733216252035,0.7605,3617.1,3616.6,2.76499]
[1733216252232,2.76472,3617.0,3616.9,0.03477562]
[1733216252477,2.76472,3617.0,3615.3,0.55281221]
[1733216252478,0.7791,3616.6,3615.3,0.55281221]
[1733216252794,0.7791,3616.6,3615.6,2.76574]
[1733216253000,1.03584407,3616.6,3615.6,2.76574]
[1733216253298,1.03584407,3616.6,3615.7,0.03548508]
[1733216253651,0.7791,3616.6,3615.8,2.76561]
[1733216253855,0.7791,3616.6,3615.7,0.03548508]
[1733216253856,0.7791,3616.6,3616.2,0.03154]
[1733216254161,0.7791,3616.6,3616.3,0.03510862]
[1733216254367,0.7791,3616.6,3616.2,0.03154]
[1733216254564,0.7791,3616.6,3616.3,0.03510862]
[1733216254784,0.7791,3616.6,3616.2,0.03154]
[1733216255103,0.7791,3616.6,3616.3,0.03510862]
[1733216255474,0.7791,3616.6,3616.2,0.03154]
[1733216255783,0.7791,3616.6,3616.3,0.03510862]
[1733216255959,0.7791,3616.6,3616.2,0.03154]
[1733216256161,0.7791,3616.6,3616.3,0.03510862]
[1733216256501,0.53984176,3616.5,3616.2,0.03154]
[1733216256793,0.53984176,3616.5,3616.3,0.03510862]
[1733216257173,0.53984176,3616.5,3616.2,2.79686]
[1733216257369,0.53984176,3616.5,3616.3,0.03510862]
[1733216257704,0.53984176,3616.5,3616.2,2.79686]
[1733216257999,0.53984176,3616.5,3616.3,0.03507195]
[1733216258501,0.53984176,3616.5,3616.2,2.79686]
[1733216258662,0.53984176,3616.5,3616.4,0.03500922]
[1733216258858,0.53984176,3616.5,3616.3,0.03507195]
[1733216259096,0.53984176,3616.5,3616.4,0.03500922]
[1733216259459,0.53984176,3616.5,3616.2,2.79686]
[1733216259796,0.53984176,3616.5,3616.3,0.03507195]
[1733216260095,0.53984176,3616.5,3616.2,2.79686]
[1733216260319,0.53984176,3616.5,3616.4,0.03500922]
[1733216260518,0.53984176,3616.5,3616.3,0.03507195]
[1733216260724,0.25674407,3617.1,3617.0,2.76472]
[1733216261027,1.01535416,3617.6,3617.1,2.76458]
[1733216261183,0.7587,3617.6,3617.1,2.76458]
[1733216261385,0.7587,3617.6,3617.2,2.7990075]
[1733216261689,1.31553811,3617.6,3617.3,2.76445]
[1733216262093,1.31553811,3617.6,3617.4,0.0343821]
[1733216262714,1.31553811,3617.6,3616.5,0.8011]
[1733216262715,1.31553811,3617.6,3617.2,2.76456]
[1733216263186,0.7646,3618.1,3617.3,0.0344448]
[1733216263393,0.7646,3618.1,3617.5,2.76431]
[1733216263583,0.25665416,3618.5,3617.7,0.7862]
[1733216263790,0.7718,3618.6,3618.5,2.76357]
[1733216264018,0.7718,3618.9,3618.5,2.79684616]
[1733216264494,0.7718,3618.9,3618.6,2.76349]
[1733216264690,0.7718,3618.9,3618.7,2.76341]
[1733216265027,0.7718,3618.9,3618.7,0.03278103]
[1733216265232,0.25665416,3619.7,3618.7,0.03278103]
[1733216265233,0.7718,3619.6,3618.9,2.76326]
[1733216265647,0.7718,3619.6,3619.0,2.7954634]
[1733216266005,0.7718,3619.6,3619.0,0.0322834]
[1733216266320,0.7718,3619.6,3619.3,2.76294]
[1733216266506,0.7718,3619.6,3619.4,0.03203288]
[1733216266693,1.31747593,3619.6,3619.4,0.03203288]
[1733216267098,1.31747593,3619.6,3619.2,2.76302]
[1733216267337,1.31747593,3619.6,3619.5,0.03197025]
[1733216267536,1.31747593,3619.6,3619.2,2.76302]
[1733216267714,1.31747593,3619.6,3619.5,0.03197025]
[1733216268318,1.31747593,3619.6,3619.5,0.03016193]
[1733216268757,1.31747593,3619.6,3619.2,2.76302]
[1733216268972,1.31747593,3619.6,3619.5,0.03016193]
[1733216269120,1.31747593,3619.6,3619.2,2.76302]
[1733216269456,1.31747593,3619.6,3619.2,2.79456]
[1733216269646,1.31747593,3619.6,3619.3,0.03028718]
[1733216272923,1.31747593,3619.6,3619.3,2.79324718]
[1733216273426,12.13,3621.0,3619.3,2.79324718]
[1733216273427,0.7533,3620.1,3619.7,2.76265]
[1733216273961,0.7533,3620.1,3619.8,0.02997408]
[1733216274159,0.7533,3620.1,3619.4,2.76288]
[1733216274332,0.7533,3620.1,3619.5,0.03016193]
[1733216274534,0.7533,3620.1,3619.7,2.76261]
[1733216274740,0.7533,3620.1,3619.8,0.02997408]
[1733216274934,1.31469127,3620.1,3619.8,2.79255408]
[1733216275167,0.25455761,3621.2,3619.8,2.79255408]
[1733216275375,0.7934,3621.0,3620.1,2.76234]
[1733216275579,0.56070112,3620.6,3620.2,0.02963057]
[1733216275969,0.56070112,3620.6,3619.8,0.7827]
[1733216276170,0.56070112,3620.6,3619.9,0.68515336]
[1733216276702,0.7934,3621.0,3619.9,0.68515336]
[1733216276853,0.7934,3621.0,3620.0,2.76241]
[1733216277362,0.55898644,3620.6,3620.1,0.02969317]
[1733216278395,0.7543,3620.5,3619.3,0.28247872]
[1733216278556,3.51638,3620.5,3619.4,3.48094331]
[1733216278759,2.76214,3620.4,3619.4,0.03013146]
[1733216279019,0.55,3620.4,3619.4,0.03013146]
[1733216279187,0.7691,3620.0,3619.5,0.02975966]
[1733216279399,0.7691,3620.0,3619.6,0.02974695]
[1733216279400,3.53153,3620.0,3619.6,0.02974695]
[1733216279702,0.7691,3620.0,3619.2,0.03154]
[1733216280004,0.7691,3620.0,3619.3,0.02994824]
[1733216281211,0.55483802,3619.8,3619.3,0.02994824]
[1733216282410,0.55483802,3619.8,3619.3,2.79290824]
[1733216283106,0.55,3619.9,3619.3,2.79290824]
[1733216283266,0.55,3619.9,3619.3,0.02994824]
[1733216283693,3.3125,3619.9,3619.3,0.02994824]
[1733216283899,0.55,3619.9,3619.3,0.02994824]
[1733216284406,0.55,3619.7,3619.3,0.02994824]
[1733216284700,0.55,3619.5,3619.3,0.02994824]
[1733216288105,0.55,3619.5,3619.2,0.03154]
[1733216288268,2.76316,3619.1,3617.9,2.76402]
[1733216288469,0.55,3619.0,3618.0,0.65430498]
[1733216288713,0.55,3619.0,3618.0,0.6845732]
[1733216288871,0.55,3619.1,3618.1,2.76385]
[1733216289077,3.31328,3618.9,3618.0,0.03026822]
[1733216289414,3.31328,3618.9,3618.1,0.03020107]
[1733216289578,3.31328,3618.9,3617.8,6.54311978]
[1733216289779,3.31328,3618.9,3617.9,2.79434537]
[1733216290179,0.5399679,3618.7,3617.9,2.79434537]
[1733216291411,0.8312,3618.6,3617.9,0.03033537]
[1733216291622,0.8312,3618.6,3617.7,2.76418]
[1733216291820,0.8312,3618.6,3617.5,3.8328]
[1733216291821,0.8312,3618.6,3617.8,2.79450253]
[1733216291996,0.55,3618.5,3617.8,0.03040253]
[1733216292182,0.55,3618.5,3617.5,3.8328]
[1733216292382,0.55,3618.5,3617.6,0.02850106]
[1733216293081,0.55,3618.5,3617.6,2.79271106]
[1733216295345,0.55,3618.5,3617.7,2.76416]
[1733216295621,0.55,3618.5,3617.8,0.02837569]
[1733216296321,0.55,3618.5,3617.5,3.59712]
[1733216296525,0.55,3618.5,3617.9,0.02831301]
[1733216296686,0.55,3618.5,3617.5,0.8328]
[1733216296885,0.55,3618.5,3618.0,0.02825034]
[1733216297218,0.55,3618.5,3618.1,0.02818766]
[1733216297420,0.55,3618.5,3617.7,2.76418]
[1733216297621,0.55,3618.5,3617.8,0.02837569]
[1733216298607,0.55,3618.5,3617.8,2.79247569]
[1733216301324,2.76296,3619.3,3617.8,2.79247569]
[1733216301652,0.56518682,3618.4,3618.0,2.76394]
[1733216302061,0.56518682,3618.4,3618.1,0.03020107]
[1733216302419,0.56518682,3618.4,3617.8,2.76403]
[1733216302757,0.56518682,3618.4,3617.9,0.03033537]
[1733216303265,2.76328,3618.9,3617.9,0.03033537]
[1733216303917,2.76308,3619.2,3618.1,2.76383]
[1733216304119,2.76308,3619.2,3617.9,0.03033537]
[1733216304120,2.76328,3618.9,3618.2,0.02841083]
[1733216304319,0.7848,3618.8,3617.7,2.76416]
[1733216304558,0.54006495,3618.6,3617.7,3.70108298]
[1733216304715,0.54006495,3618.6,3617.8,0.02866152]
[1733216305057,0.54006495,3618.6,3617.8,2.79275152]
[1733216305414,0.54006495,3618.6,3617.5,0.8328]
[1733216306058,0.54006495,3618.6,3617.7,2.76413]
[1733216306226,0.54006495,3618.6,3617.8,2.76409]
[1733216306428,0.54006495,3618.6,3617.9,0.02994204]
[1733216306926,0.54006495,3618.6,3617.7,2.76418]
[1733216307127,0.7946,3618.5,3617.8,0.03000919]
[1733216307828,0.7946,3618.5,3617.8,2.79408919]
[1733216308677,0.7946,3618.5,3617.8,0.03000919]
[1733216309175,0.7946,3618.5,3617.5,0.8328]
[1733216309379,0.7946,3618.5,3617.6,0.359722]
[1733216309547,0.7946,3618.5,3617.7,0.03007635]
[1733216310389,0.54006495,3618.6,3617.7,0.05771717]
[1733216310551,0.54006495,3618.6,3618.3,2.76372]
[1733216310753,0.54006495,3618.6,3618.4,0.02960631]
[1733216311257,0.54006495,3618.6,3618.4,2.79324631]
[1733216311583,0.7946,3619.3,3618.7,2.76342]
[1733216311787,0.7946,3619.3,3618.4,0.38909094]
[1733216312083,0.7946,3619.3,3618.4,0.35948463]
[1733216312281,0.7946,3619.3,3618.5,0.02953918]
[1733216312486,0.7946,3619.3,3618.6,2.76345]
[1733216312635,0.5560735,3619.0,3618.5,2.79304918]
[1733216312836,0.5560735,3619.0,3618.5,3.25358164]
[1733216313067,0.5560735,3619.0,3618.5,0.02953918]
[1733216314866,0.7946,3619.3,3618.6,2.76349]
[1733216315076,0.7946,3619.3,3618.6,0.8099]
[1733216315358,1.35446808,3619.3,3618.9,2.76324]
[1733216315706,0.7946,3619.3,3619.0,0.02882963]
[1733216315904,2.76244,3620.0,3619.0,0.02882963]
[1733216315905,0.56246852,3619.6,3619.0,0.02882963]
[1733216316203,0.56246852,3619.6,3618.8,2.76328]
[1733216316407,0.25644416,3619.5,3618.9,0.03111957]
[1733216316700,0.56246852,3619.6,3618.9,2.79436957]
[1733216316897,0.81891268,3619.6,3618.9,2.79436957]
[1733216317099,0.56246852,3619.6,3618.9,0.03111957]
[1733216317304,0.81891268,3619.6,3619.0,2.76317]
[1733216317607,0.56246852,3619.6,3619.1,0.03083315]
[1733216317759,0.81891268,3619.6,3619.1,0.03083315]
[1733216318103,0.56246852,3619.6,3619.1,2.79391315]
[1733216318303,0.25644416,3619.7,3619.1,2.79391315]
[1733216318504,0.25644416,3619.7,3619.2,2.76296]
[1733216318861,0.25644416,3619.7,3619.3,0.03068861]
[1733216319168,0.25644416,3619.7,3619.0,2.76317]
[1733216319501,0.25644416,3619.7,3619.1,2.79393315]
[1733216320106,0.25692446,3619.7,3619.1,2.79393315]
[1733216320307,0.79921726,3619.7,3619.1,2.79393315]
[1733216320519,0.5422928,3619.7,3619.1,2.79393315]
[1733216320722,0.79921726,3619.7,3619.1,0.03083315]
[1733216320892,3.58954,3619.6,3619.1,0.03083315]
[1733216321218,1.08372446,3619.5,3618.4,3.56613]
[1733216321417,0.25692446,3619.4,3618.5,0.03565339]
[1733216321711,0.25692446,3619.3,3618.5,0.03565339]
[1733216321917,0.25692446,3619.4,3618.5,2.79916339]
[1733216322121,0.25692446,3619.3,3618.6,2.76343]
[1733216322305,0.25692446,3619.4,3618.7,2.76338]
[1733216322491,0.8268,3619.5,3618.8,2.76331]
[1733216322693,1.08372446,3619.5,3618.8,2.76331]
[1733216322894,0.8268,3619.5,3618.9,0.03531166]
[1733216323091,1.08372446,3619.5,3618.9,0.03531166]
[1733216323292,0.8268,3619.5,3618.9,0.03531166]
[1733216323778,0.25681672,3619.4,3618.9,0.03531166]
[1733216324414,0.8268,3619.5,3618.9,0.03531166]
[1733216324615,1.08361672,3619.5,3618.9,0.03531166]
[1733216324824,0.8268,3619.5,3618.9,0.03531166]
[1733216325127,1.08361672,3619.5,3618.9,0.03531166]
[1733216325313,0.8268,3619.5,3618.9,0.03531166]
[1733216325625,1.08361672,3619.5,3618.9,0.03531166]
[1733216325826,0.8268,3619.5,3618.9,0.03531166]
[1733216326024,0.25681672,3619.4,3618.9,0.03531166]
[1733216326224,0.25681672,3619.4,3618.6,2.76348]
[1733216326430,0.25681672,3619.4,3618.7,0.03548251]
[1733216326804,0.25681672,3619.3,3618.4,3.56613]
[1733216327028,3.01964927,3619.4,3618.5,0.03565339]
[1733216327233,0.25675927,3619.3,3618.5,0.03565339]
[1733216327439,3.53845,3619.2,3618.5,0.03565339]
[1733216327640,0.25675927,3619.1,3618.2,2.76375]
[1733216327975,0.25675927,3619.1,3618.3,0.032706]
[1733216328103,0.25675927,3619.1,3618.3,0.3123516]
[1733216328305,0.7754,3619.2,3618.5,2.76357]
[1733216328510,0.7754,3619.2,3618.3,0.032706]
[1733216328813,0.25675927,3619.4,3618.5,0.756]
[1733216329025,0.7754,3619.5,3618.9,2.76326]
[1733216329228,0.7754,3619.5,3619.0,2.79533781]
[1733216329789,5.63427766,3620.5,3619.3,2.76291]
[1733216329790,0.25675927,3619.8,3619.3,2.76291]
[1733216329991,0.25675927,3620.3,3619.4,2.79761961]
[1733216330225,0.25675927,3620.2,3619.4,2.79761961]
[1733216330531,2.76218,3620.4,3619.4,0.03473961]
[1733216330532,0.25675927,3620.1,3619.4,0.03473961]
[1733216330755,1.03215927,3620.0,3619.4,0.03473961]
[1733216331028,0.7754,3620.0,3619.5,0.03465422]
[1733216331229,1.03215927,3620.0,3619.3,2.76293]
[1733216331438,0.7754,3620.0,3619.4,0.03473961]
[1733216331938,1.03215927,3620.0,3619.4,0.03473961]
[1733216334135,0.7754,3620.0,3619.4,0.03473961]
[1733216334494,1.03215927,3620.0,3618.8,0.8141]
[1733216334694,1.03215927,3620.0,3619.5,0.03465422]
[1733216334938,1.03215927,3620.0,3619.2,2.76303]
[1733216335121,1.03215927,3620.0,3619.6,0.03456883]
[1733216335295,1.03215927,3620.0,3618.6,3.00507718]
[1733216335296,0.7818,3619.9,3618.4,0.8327]
[1733216335526,3.80119927,3619.8,3618.7,2.76339]
[1733216335726,0.8008,3619.6,3618.5,2.80503339]
[1733216335929,3.01962927,3619.5,3618.8,0.0463164]
[1733216336266,1.01875927,3619.4,3618.9,0.04619895]
[1733216336626,1.01875927,3619.4,3618.4,2.76364]
[1733216336939,0.762,3619.4,3618.5,0.04666882]
[1733216337347,0.25693498,3619.3,3618.5,0.04666882]
[1733216337530,1.01893498,3619.4,3618.6,2.76348]
[1733216337735,0.762,3619.4,3618.6,2.76348]
[1733216338019,0.25693498,3619.3,3618.7,0.04643387]
[1733216338239,1.01893498,3619.4,3618.8,2.76331]
[1733216338432,0.25693498,3619.3,3618.9,0.04619895]
[1733216338853,0.25693498,3619.2,3618.6,2.76348]
[1733216339054,0.25693498,3619.3,3618.7,0.04643387]
[1733216339228,0.25693498,3619.2,3618.7,0.04643387]
[1733216339428,0.25693498,3619.3,3618.7,0.04643387]
[1733216339826,0.25693498,3619.3,3618.7,2.80984387]
[1733216340225,0.25693498,3619.2,3618.8,2.76333]
[1733216340431,0.25693498,3619.3,3618.9,0.04616782]
[1733216340638,0.25718106,3619.3,3618.9,0.04616782]
[1733216342471,0.25718106,3619.2,3618.6,2.76348]
[1733216342645,0.25718106,3619.3,3619.0,0.04605037]
[1733216342845,0.25718106,3619.2,3618.6,2.76348]
[1733216343041,0.25718106,3619.1,3618.7,0.04640274]
[1733216343255,0.25718106,3619.3,3618.4,2.76362]
[1733216343451,0.25718106,3619.2,3618.6,2.76348]
[1733216343630,0.25718106,3619.3,3618.7,0.04640274]
[1733216343834,0.25718106,3619.2,3618.5,2.76356]
[1733216344045,0.25718106,3619.3,3618.6,0.04652021]
[1733216344346,1.01918106,3619.4,3618.6,2.81001021]
[1733216344533,1.01918106,3619.4,3618.6,0.04652021]
[1733216345037,0.8207,3619.3,3618.7,0.04640274]
[1733216345258,1.07788106,3619.3,3618.4,2.7636]
[1733216345477,0.8207,3619.3,3618.5,0.04663769]
[1733216345852,0.8207,3619.3,3618.6,2.76349]
[1733216346055,1.07788106,3619.3,3618.7,0.04640274]
[1733216346360,0.8207,3619.3,3618.7,0.04640274]
[1733216346689,0.25733799,3619.2,3618.2,2.76378]
[1733216346898,3.02037799,3619.2,3618.8,0.04628528]
[1733216347049,0.25733799,3619.1,3618.1,2.76385]
[1733216347401,0.8007,3619.0,3618.2,0.04699016]
[1733216348265,2.76327,3618.9,3618.2,0.04699016]
[1733216348464,2.76327,3618.9,3616.4,0.19999678]
[1733216348465,0.7694,3618.7,3616.9,1.05422438]
[1733216348667,0.54710858,3618.4,3617.0,0.04546375]
[1733216348870,0.55,3618.1,3617.2,2.76455]
[1733216349056,0.55,3618.1,3617.3,2.76449]
[1733216349404,0.25733799,3618.2,3617.9,2.76401]
[1733216349695,0.7694,3618.8,3617.8,0.02763818]
[1733216349885,0.25719425,3618.7,3617.8,2.76408]
[1733216350394,1.32585756,3618.8,3618.2,2.76378]
[1733216350627,1.32585756,3618.8,3617.9,0.02763643]
[1733216350768,1.32585756,3618.8,3618.1,2.76386]
[1733216351201,1.32585756,3618.8,3618.2,2.76377]
[1733216351707,1.32585756,3618.8,3618.0,0.57967936]
[1733216351708,1.32585756,3618.8,3618.4,2.76364]
[1733216351870,0.807,3619.1,3618.4,2.76362]
[1733216352209,0.807,3619.1,3618.3,0.7551]
[1733216352409,0.807,3619.1,3618.4,2.76364]
[1733216354068,0.807,3619.1,3618.3,3.17357094]
[1733216355498,0.807,3619.1,3618.4,2.76365]
[1733216356401,0.807,3619.1,3618.3,0.40985094]
[1733216356703,0.807,3619.1,3618.3,3.17355094]